Cogmind - Beta 15 @@@ ROGUE MODE // 2025.05.09 @ 22:23:42 Player: LFMAC Result: Destroyed by P-60 Hacker with Shock Rifle Performance ------------- Evolutions (3) 1500 Regions Visited (5) 1000 Robots Destroyed (172) 860 Value Destroyed (6234) 6234 Prototype IDs (14) 280 Alien Tech Used (0) 0 Bonus (1380) 1380 TOTAL SCORE: 11254 Bonus ------- High Alert Combat Kills 920 Follower Combat Kills 460 Cogmind --------- Core Integrity 0/700 Matter 6/300 Energy 881/900 System Corruption 27% Temperature Warm (126) Movement Treading (400) Ox3 Location -7/Factory Parts ------- > --- POWER (2) -------- Hybrid Deuterium Engine Cold Fusion Reactor > --- PROPULSION (3) --- Enhanced Armored Medium Treads > --- UTILITY (6) ------ Huge Storage Unit Improved Sensor Array Improved Signal Interpreter Core Analyzer Improved Weapon Shielding Medium Reactive Plating > --- WEAPON (2) ------- Improved EM Pulse Cannon Flak Cannon > --- INVENTORY (25) --- Deuterium Engine Light Nuclear Core Enhanced Nuclear Core Micro Nuclear Core Mini Fusion Reactor Improved Heat Sink Coolant Injector Compact Matter Pod (150) Makeshift Cloaking Device Heavy Armor Plating Layered Light Armor Plating Insulated Plating Remote Force Field Hacking Suite Hacking Suite Hacking Suite Drone Bay (1/2) 01-MTF's Shockpuncher Mini Grenade Launcher Peak State ------------ > --- POWER ------------ Reinforced Deuterium Engine Cold Fusion Reactor > --- PROPULSION ------- Medium Treads Enhanced Armored Medium Treads Enhanced Armored Medium Treads > --- UTILITY ---------- Improved Heat Sink Huge Storage Unit Improved Signal Interpreter Weapon Cycler Improved Light Armor Plating Improved Medium Armor Plating > --- WEAPON ----------- Ion Burst Cannon Gauss Cannon > --- INVENTORY -------- Light Nuclear Core Micro Nuclear Core Mini Fusion Reactor Light Treads Coolant Injector Compact Matter Pod Trap Scanner Improved Sensor Array Core Analyzer Transmission Jammer Makeshift Cloaking Device Improved Weapon Shielding Medium Reactive Plating Remote Force Field Hacking Suite Hacking Suite High-powered Tractor Beam Drone Bay 01-MTF's Shockpuncher Heavy Rocket Launcher [Rating: 66] Favorites ----------- Power Hybrid Deuterium Engine Engine Hybrid Deuterium Engine Reactor Cold Fusion Reactor Propulsion Medium Treads Treads Medium Treads Leg Aluminum Leg Wheel Wheel Utility Improved Signal Interpreter Device Improved Sensor Array Storage Huge Storage Unit Processor Improved Signal Interpreter Protection Hardened Medium Armor Plating Weapon Gauss Cannon Energy Gun Precision Beam Rifle Energy Cannon Heavy Ion Cannon Ballistic Gun Enhanced Autogun Ballistic Cannon Gauss Cannon Launcher EMP Blaster Special Weapon Remote Datajack Special Melee Weapon Dirty Datajack Build | -11 -10 -10 -8 -8 -7 ------- Run | Yrd Mat Sub Mat Sto Fac Slots Evolved 6 | . . . 4 . 2 Power 1 | . . . . . 1 Propulsion 1 | . . . 1 . . Utility 4 | . . . 3 . 1 Weapon . | . . . . . . Parts Attached 144 | 6 11 14 51 18 44 Power 22 | 1 . 4 8 3 6 Engine 20 | 1 . 4 8 1 6 Core . | . . . . . . Reactor 2 | . . . . 2 . Propulsion 31 | 2 4 3 14 1 7 Treads 17 | . . . 9 1 7 Leg 4 | . . . 4 . . Wheel 10 | 2 4 3 1 . . Hover . | . . . . . . Flight . | . . . . . . Utility 46 | 1 5 2 15 3 20 Device 14 | . 1 . 5 . 8 Storage 7 | 1 1 . 1 2 2 Processor 4 | . . . 3 . 1 Hackware . | . . . . . . Protection 21 | . 3 2 6 1 9 Artifact . | . . . . . . Weapon 45 | 2 2 5 14 11 11 Energy Gun 11 | 1 . . 4 6 . Energy Cannon 5 | . . . 1 2 2 Ballistic Gun 12 | 1 1 2 7 1 . Ballistic Cannon 9 | . . 1 1 1 6 Launcher 6 | . 1 2 . 1 2 Special Weapon 1 | . . . . . 1 Impact Weapon . | . . . . . . Slashing Weapon . | . . . . . . Piercing Weapon . | . . . . . . Special Melee Weapon 1 | . . . 1 . . Unidentified Prototypes 14 | . . . 3 9 2 Corrupted Parts 3 | . . . 2 . 1 System Corruption 14 | . . . 4 . 10 Parts Lost 50 | . 3 4 16 . 27 Power 7 | . . . 2 . 5 Propulsion 13 | . 1 1 5 . 6 Utility 19 | . 2 2 4 . 11 Weapon 11 | . . 1 5 . 5 Highest Loss Streak 8 | . 1 2 4 . 8 To Critical Strikes . | . . . . . . Average Backups 18 | 3 11 14 14 18 22 Power 3 | . 1 1 2 3 3 Propulsion 1 | 1 2 2 1 . 1 Utility 10 | . 6 6 7 10 13 Weapon 3 | . 2 3 2 2 4 Tool/Special . | . . . . . . Unused Backups 51 | . 9 4 15 4 19 Power 8 | . . . 3 . 5 Propulsion 8 | . 2 . 5 . 1 Utility 29 | . 5 4 4 3 13 Weapon 5 | . 1 . 3 1 . Tool/Special 1 | . 1 . . . . Average Slot Usage (%) 98 | . 98 99 98 99 97 Engine 10 | . 14 14 8 9 11 Reactor 1 | . . . . . 2 Treads 17 | . . . 10 26 21 Leg 2 | . . . 14 . . Wheel 4 | . 27 27 . . . Device 11 | . . . 9 9 16 Storage 8 | . 14 14 9 9 7 Processor 11 | . . . 10 18 12 Protection 10 | . 12 14 15 9 7 Energy Gun 2 | . 6 . 3 4 1 Energy Cannon 1 | . . . . . 3 Ballistic Gun 6 | . 19 15 12 4 . Ballistic Cannon 5 | . . . 1 8 7 Launcher 1 | . 1 12 . . . Peak Build Rating 66 | 6 9 15 41 47 66 Average Rating 41 | 3 8 12 33 40 55 On Entrance 18 | . 6 9 15 40 43 Naked Turns . | . . . . . . Heaviest Build 136 | 13 34 35 48 105 136 Greatest Support 98 | 32 32 40 84 84 98 Greatest Overweight (x) 3 | . 2 1 2 1 3 Average Overweight (x) . | . . . . . 1 Largest Inventory Capacity 25 | 8 15 15 15 25 25 Average Capacity 20 | 6 13 15 15 19 25 Most Carried 25 | 5 15 15 15 25 25 Average Carried 18 | 3 12 14 14 18 23 Final Capacity 25 | 8 15 15 15 25 25 Final Carried 25 | 4 15 15 15 25 20 Class Distribution -------------------- 40% | Skirmisher 37% | Mutant 16% | Commander-Skirmisher 5% | Scavenger-Mutant Dominant Class ---------------- Mutant | -10/Materials Mutant | -10/Subcaves Skirmisher | -8/Materials Commander-Skirmisher | -8/Storage Skirmisher | -7/Factory Resources | -11 -10 -10 -8 -8 -7 ----------- Run | Yrd Mat Sub Mat Sto Fac Matter Collected 6246 | 219 343 530 1663 768 2723 Remotely 1213 | . . . . . 1213 Salvage Created 5985 | . 363 590 1957 749 2326 Parts 331 | . 28 34 120 44 105 Haulers Intercepted 3 | . . . 1 1 1 Recyclers Shooed 2 | . . . 1 1 . Parts Field Recycled . | . . . . . . Retrieved Matter . | . . . . . . Parts Self-Destructed 11 | . . 11 . . . Prevented 1 | . . 1 . . . Kills | -11 -10 -10 -8 -8 -7 ------- Run | Yrd Mat Sub Mat Sto Fac Combat Hostiles Destroyed 132 | . 12 11 40 4 65 Guns 61 | . 12 3 33 3 10 Cannons 44 | . . . 3 1 40 AOE 26 | . . 8 4 . 14 Classes Destroyed 16 | . 4 1 8 1 2 Worker 8 | . . . 2 5 1 Builder 6 | . 1 . 2 2 1 Hauler 3 | . . . 1 1 1 Recycler 5 | . . . 1 3 1 Mechanic 3 | . . . . 1 2 Operator 5 | . . . 2 1 2 Watcher 8 | . 3 . 3 1 1 Swarmer 27 | . 8 . 6 . 13 Grunt 59 | . 4 2 18 4 31 Brawler 2 | . . . . . 2 Duelist 5 | . . . 1 1 3 Sentry 14 | . . . 9 1 4 Specialist 4 | . . . 4 . . Hunter 3 | . . . 2 . 1 Programmer 11 | . . . . . 11 Subdweller 9 | . . 9 . . . Best Kill Streak 11 | . 4 2 5 5 11 Combat Bots Only 9 | . 3 2 5 2 9 Max Kills in Single Turn 5 | . 2 2 4 2 5 Gunslinging 1 | . 1 . . . . Exploded 4 | . . 2 2 . 4 Melee . | . . . . . . Uniques/NPCs Destroyed . | . . . . . . Combat | -11 -10 -10 -8 -8 -7 -------- Run | Yrd Mat Sub Mat Sto Fac Hostile Shots Fired 934 | . 73 35 270 17 539 Missed 242 | . 17 8 63 8 146 Hits 692 | . 56 27 207 9 393 Melee 21 | . . . 1 1 19 Projectile 671 | . 56 27 206 8 374 Critical Strikes 37 | . 3 . 14 2 18 Actively Blocked 2 | . . . 2 . . Part Disruptions 1 | . . . . . 1 Damage Taken 11316 | . 562 551 3366 194 6643 Core 1254 | . 72 157 308 16 701 Absorbed by Shields . | . . . . . . Redirected to Shielding 98 | . . . 71 . 27 Ignored by Resistances 26 | . . . . . 26 Regen/Repaired (Parts) 223 | . . . 81 142 . Core Remaining (%) 49 | 100 . 8 . 41 . Volleys Fired 542 | . 39 58 156 57 232 Largest 2 | . 2 2 2 2 2 Hottest 140 | . 60 53 85 91 140 Shots Fired 965 | . 75 72 304 105 409 Gun 535 | . 72 49 260 50 104 Cannon 387 | . . 1 41 55 290 Launcher 43 | . 3 22 3 . 15 Special . | . . . . . . Kinetic 695 | . 43 50 248 73 281 Thermal 174 | . 29 . 18 19 108 Explosive 30 | . . 15 . . 15 Electromagnetic 66 | . 3 7 38 13 5 Robot Hit Streak 28 | . 11 28 16 11 13 Robot Miss Streak 10 | . 8 1 5 5 10 Penetration Max 1 | . . . . . 1 Secondary Targets 5 | . 3 . 2 . . Max Gunslinging Chain 1 | . 1 . 1 . . Shots Hit Robots 617 | . 48 49 208 49 263 Core Hits 331 | . 21 31 95 43 141 Critical Kills 2 | . . . 1 . 1 Critical Parts Destroyed 1 | . . . 1 . . Critical Strikes 19 | . . . 5 . 14 Meltdown 1 | . . . . . 1 Destroy 3 | . . . 3 . . Blast 14 | . . . 1 . 13 Corrupt 1 | . . . 1 . . Melee Attacks 6 | . . . 6 . . Impact . | . . . . . . Slashing . | . . . . . . Piercing 6 | . . . 6 . . Sneak Attacks 4 | . . . 4 . . Combat Hostiles 3 | . . . 3 . . Follow-up Attacks . | . . . . . . Damage Inflicted 15875 | . 656 1338 4299 1126 8456 Guns 6186 | . 556 676 3081 424 1449 Cannons 6541 | . . . 561 697 5283 Explosions 3122 | . 100 662 636 . 1724 Melee 21 | . . . 21 . . Ramming 5 | . . . . 5 . Kinetic 9144 | . 339 676 2929 758 4442 Thermal 3344 | . 217 40 700 69 2318 Explosive 2283 | . . 487 112 . 1684 Electromagnetic 1078 | . 100 135 537 294 12 Impact . | . . . . . . Slashing . | . . . . . . Piercing 21 | . . . 21 . . Highest Corruption 27 | . . 1 4 4 27 Average Corruption 8 | . . 1 3 4 13 Corruption Purged . | . . . . . . Corruption Blocked . | . . . . . . Effects 393 | . . 8 54 88 243 Message Errors 79 | . . 1 12 23 43 Matter Fused 104 | . . 1 13 26 64 Heat Flow Errors 38 | . . . 7 5 26 Energy Discharges 46 | . . . 7 13 26 Parts Rejected 4 | . . . . . 4 Parts Fused 6 | . . 2 . . 4 Data Loss (minor) 45 | . . 2 7 9 27 Data Loss (major) 24 | . . 1 4 4 15 Misfires 21 | . . . 1 4 16 Alerts 9 | . . . . 2 7 Weapon Failures 17 | . . 1 3 2 11 Overload Shots . | . . . . . . Overflow Damage 344 | . 19 . 96 3 226 Projectiles 164 | . . . . 3 161 Explosions 180 | . 19 . 96 . 65 Melee . | . . . . . . Knockbacks 77 | . . . 14 10 53 Impact . | . . . . . . Kinetic 67 | . . . 13 10 44 Secondary 10 | . . . 1 . 9 Self-Inflicted Damage 963 | . . 41 146 . 776 Shots 17 | . . 2 3 . 12 Rammed 2 | . . . . 2 . Targets Rammed 3 | . . . 1 2 . Kicked 1 | . . . 1 . . Crushed . | . . . . . . Highest Temperature 446 | . 313 . 280 279 446 Average Temperature 90 | . 101 . 57 54 108 Received Heat Transfer 3135 | . 207 162 963 108 1695 Effects 15 | . . . . 2 13 Shutdowns 2 | . . . . . 2 Energy Bleed 2 | . . . . . 2 Interference 11 | . . . . 2 9 Siege Activations . | . . . . . . Martial Activations . | . . . . . . Shielding Activations . | . . . . . . Robots Disrupted . | . . . . . . Combat Hostiles . | . . . . . . Robots Corrupted . | . . . . . . Combat Hostiles . | . . . . . . Parts Fried 2 | . 1 . 1 . . Impact Corruptions . | . . . . . . Robots Melted 1 | . . . . . 1 Combat Hostiles 1 | . . . . . 1 Parts Melted 8 | . . . . . 8 Heat Transferred 4667 | . 500 50 675 148 3294 Parts Sabotaged . | . . . . . . Parts Stolen . | . . . . . . Parts Stripped . | . . . . . . Power Chain Reactions 5 | . . 1 3 . 1 Alert | -11 -10 -10 -8 -8 -7 ------- Run | Yrd Mat Sub Mat Sto Fac Maximum Alert Level 4 | . 1 . 2 1 4 Low Security (%) 56 | 100 94 . 47 83 40 Level 1 20 | . 5 . 47 16 13 Level 2 6 | . . . 4 . 12 Level 3 9 | . . . . . 20 Level 4 6 | . . . . . 13 Level 5 . | . . . . . . High Security . | . . . . . . Max Security . | . . . . . . Peak Influence 1450 | . 220 . 506 237 1450 Initial 210 | . . . . 210 82 Average 328 | . 82 . 220 157 505 Influence Increases 4670 | . 391 50 1339 776 2114 Destroy 0b10 Robot/C 2720 | . 240 40 800 320 1320 Destroy 0b10 Robot/NC 205 | . 20 . 55 80 50 Destroy Leader 686 | . 56 10 218 86 316 Allied During Kill 179 | . . . . 171 8 Successful Hack 17 | . . . 8 9 . Disable Machine 390 | . . . 75 90 225 Destroy Structure 158 | . . . 33 5 120 Lose Combat Pursuer 315 | . 75 . 150 15 75 Influence Decreases 3220 | . 391 50 840 1093 846 Entered New Map 389 | . . . . 289 100 Time Decay 2289 | . 361 50 693 724 461 Lost Part 447 | . 30 . 147 . 270 Lost Ally 95 | . . . . 80 15 Squads Dispatched 34 | . 1 . 9 2 22 Investigation 3 | . 1 . 2 . . Extermination 12 | . . . . . 12 Reinforcement 11 | . . . 4 2 5 Assault 5 | . . . . . 5 Garrison 3 | . . . 3 . . Intercept . | . . . . . . Searches Triggered . | . . . . . . Construction Impeded 2 | . . . . 1 1 Haulers Reinforced 2 | . . . . . 2 Active Scanning Responses . | . . . . . . Cargo Convoy Interrupts 1 | . . . . . 1 Stealth | -11 -10 -10 -8 -8 -7 --------- Run | Yrd Mat Sub Mat Sto Fac Distress Signals 10 | . 1 . 6 1 2 Communications Jammed 8 | . . . . . 8 Distress Signals 8 | . . . . . 8 Times Spotted 211 | . 24 11 68 20 88 Peak Tracking Total 6 | . 6 2 5 4 5 Tactical Retreats 16 | . 3 . 8 1 4 Traps | -11 -10 -10 -8 -8 -7 ------- Run | Yrd Mat Sub Mat Sto Fac Traps Triggered 8 | . 4 . 1 . 3 Indirectly . | . . . . . . Trap Hack Attempts . | . . . . . . Triggered . | . . . . . . Disarmed . | . . . . . . Reprogrammed . | . . . . . . Reused . | . . . . . . Traps Extracted . | . . . . . . Installed . | . . . . . . Triggered . | . . . . . . Machines | -11 -10 -10 -8 -8 -7 ---------- Run | Yrd Mat Sub Mat Sto Fac Machines Disabled 26 | . . . 5 6 15 Max in Single Turn 4 | . . . 1 1 4 Machines Repaired . | . . . . . . Machines Dismantled . | . . . . . . Machines Sabotaged . | . . . . . . Overloaded Fab Kills . | . . . . . . Hacking | -11 -10 -10 -8 -8 -7 --------- Run | Yrd Mat Sub Mat Sto Fac Machines Accessed 12 | . 2 2 4 3 1 Terminals 7 | . 2 . 2 2 1 Fabricators . | . . . . . . Repair Stations 2 | . . . 1 1 . Recycling Units . | . . . . . . Scanalyzers 1 | . . . 1 . . Garrison Access . | . . . . . . Total Hacks 19 | . 3 3 7 4 2 Successful 11 | . . 3 4 3 1 Failed 8 | . 3 . 3 1 1 Catastrophic 1 | . 1 . . . . Database Lockouts . | . . . . . . Manual 5 | . 3 . 2 . . Terminals 9 | . 3 . 2 2 2 Fabricators . | . . . . . . Repair Stations 4 | . . . 2 2 . Recycling Units . | . . . . . . Scanalyzers 3 | . . . 3 . . Garrison Access . | . . . . . . Terminal Hacks 5 | . . 3 . 1 1 Record 1 | . . 1 . . . Open Door 1 | . . 1 . . . Open DSF 1 | . . . . . 1 Zone Layout 1 | . . . . 1 . Release Object 1 | . . 1 . . . Fabricator Hacks . | . . . . . . Repair Station Hacks 4 | . . . 2 2 . Scan Component 2 | . . . 1 1 . Repair 2 | . . . 1 1 . Recycling Unit Hacks . | . . . . . . Scanalyzer 1 | . . . 1 . . Insert Component 1 | . . . 1 . . Garrison Access Hacks . | . . . . . . Unauthorized Hacks 1 | . . . 1 . . Terminals 1 | . . . 1 . . Operators 1 | . . . 1 . . Fabricators . | . . . . . . Repair Stations . | . . . . . . Recycling Units . | . . . . . . Scanalyzers . | . . . . . . Garrison Access . | . . . . . . Data Cores Recovered 1 | . . . . 1 . Used . | . . . . . . Hacking Detections 5 | . 1 . 2 1 1 Full Trace Events 1 | . . . 1 . . Feedback Events . | . . . . . . Feedback Blocked . | . . . . . . Robot Schematics Acquired . | . . . . . . Robots Built . | . . . . . . Authchips . | . . . . . . Time . | . . . . . . Total Robot Build Rating . | . . . . . . Part Schematics Acquired . | . . . . . . Parts Built . | . . . . . . Authchips . | . . . . . . Time . | . . . . . . Total Part Build Rating . | . . . . . . Parts Repaired 2 | . . . 1 1 . Time 82 | . . . 38 44 . Parts Recycled . | . . . . . . Recycled Matter . | . . . . . . Retrieved Matter . | . . . . . . Retrieved Components . | . . . . . . Parts Scanalyzed 1 | . . . 1 . . Part Schematics Acquired . | . . . . . . Parts Damaged . | . . . . . . Bothacking | -11 -10 -10 -8 -8 -7 ------------ Run | Yrd Mat Sub Mat Sto Fac Used RIF Installer . | . . . . . . Robots Hacked . | . . . . . . Non-combat . | . . . . . . Combat . | . . . . . . Robot Hacks Applied . | . . . . . . Relay Couplers Released . | . . . . . . Fabnet Peak Effective % . | . . . . . . Robots Rewired . | . . . . . . Allies Hacked . | . . . . . . Hacks Repelled . | . . . . . . Allies | -11 -10 -10 -8 -8 -7 -------- Run | Yrd Mat Sub Mat Sto Fac Total Allies 11 | . . . 1 10 . Largest Group 10 | . . . 1 10 3 Highest-Rated Group 173 | . . . 18 173 56 Highest-Rated Ally 29 | . . . 18 29 24 Total Orders 32 | . . . . 23 9 STAY 6 | . . . . 6 . ROAM 1 | . . . . . 1 GUARD 15 | . . . . 15 . AID 2 | . . . . 2 . EXPLORE 5 | . . . . . 5 RETURN 3 | . . . . . 3 Ally Attacks 138 | . . . . 103 35 Total Damage 1627 | . . . . 1192 435 Kills 16 | . . . . 14 2 Allies Corrupted . | . . . . . . Allies Melted . | . . . . . . Intel | -11 -10 -10 -8 -8 -7 ------- Run | Yrd Mat Sub Mat Sto Fac Active Infowar (turns) 13119 | . 61 . 2805 3736 6517 Optics 10209 | . . . 2272 3736 4201 Sensors 10260 | . . . 1602 3736 4922 Terrain 533 | . . . 533 . . Structural 61 | . 61 . . . . Traps 4922 | . . . . . 4922 Jamming 596 | . . . . . 596 Robot Analysis Total . | . . . . . . Derelict Logs Recovered 2 | . . 2 . . . Drone Launches 5 | . . . . . 5 Drone Recoveries 4 | . . . . . 4 Exploration | -11 -10 -10 -8 -8 -7 ------------- Run | Yrd Mat Sub Mat Sto Fac Turns Passed 16686 | 58 1107 1383 3199 3736 7203 Spaces Moved 7330 | 47 901 1131 1311 1694 2246 Core 14 | 14 . . . . . Treads 4518 | . . . 578 1694 2246 Legs 702 | . . . 702 . . Wheels 2096 | 33 901 1131 31 . . Hover . | . . . . . . Flight . | . . . . . . Fastest Speed 50 | 50 95 95 110 160 240 Average Speed 180 | 85 98 104 173 188 253 Slowest Speed 400 | 100 110 120 305 240 400 Overloaded Moves . | . . . . . . Propulsion Burnouts . | . . . . . . Robots Hopped . | . . . . . . Potential Cave-ins . | . . . . . . Cave-ins Triggered . | . . . . . . Exploration Rate (%) 62 | 3 98 57 83 95 41 Regions Visited 5 Branch Regions 2 Pre-discovered Areas 3 | . . 2 . 1 . Known Exits Taken 2 | . . . 1 1 . Unknown Exits Taken 3 | 1 1 1 . . . Scrap Searched 1 | . . 1 . . . Spaces Dug 6 | . . 5 . 1 . Terrain Destroyed 261 | . . 77 33 1 150 Melee . | . . . . . . Projectile 28 | . . . 1 1 26 AOE 233 | . . 77 32 . 124 Terrain Rammed . | . . . . . . Walls Destroyed . | . . . . . . Machines Disabled . | . . . . . . Actions | -11 -10 -10 -8 -8 -7 --------- Run | Yrd Mat Sub Mat Sto Fac Total 9869 | 64 1047 1270 1954 2151 3383 Wait 1464 | 3 43 22 324 325 747 Move 7325 | 46 900 1130 1310 1693 2246 Hop . | . . . . . . Pick Up 180 | 9 31 22 47 24 47 Fast Attach 38 | 1 6 1 20 5 5 Attach 88 | 5 7 11 26 1 38 Detach . | . . . . . . Swap 88 | . 6 6 18 23 35 Drop 128 | . 15 19 46 21 27 Fire 542 | . 39 58 156 57 232 Melee 6 | . . . 6 . . Ram . | . . . . . . Kick 1 | . . . 1 . . Crush 2 | . . . . 2 . Escape Stasis 6 | . . . . . 6 Rewire . | . . . . . . Trap . | . . . . . . Miscellaneous 1 | . . 1 . . . Route ------- -11/Scrapyard -10/Materials (discovered 5 exits: [*Mat x3] / [*Min] / *Sub) -10/Subcaves -8/Materials (discovered 3 exits: *Fac x2 / *Sto) -8/Storage (discovered 2 exits: *Fac / *Rec) -7/Factory History --------- Turn | Location | Event 7 | -11/Scrapyard | Discovered new exit (range 15) 59 | -11/Scrapyard | Entered Materials 261 | -10/Materials | Discovered new exit (range 5) 312 | -10/Materials | Build established: Mutant 630 | -10/Materials | Discovered new exit (range 6) 793 | -10/Materials | Discovered new exit (range 13) 821 | -10/Materials | Discovered new exit (range 16) 954 | -10/Materials | Discovered new exit (range 7) 1166 | -10/Materials | Entered Subcaves 1277 | -10/Subcaves | Ambushed by Subdwellers from Twisted Machinery 1368 | -10/Subcaves | Ambushed by Subdwellers from Twisted Machinery 1388 | -10/Subcaves | Core integrity fell below 50% 1587 | -10/Subcaves | Learned location of Mines (-9) 1662 | -10/Subcaves | Ambushed by Subdweller buried in earth 1680 | -10/Subcaves | Core integrity fell below 20% 1855 | -10/Subcaves | Discovered new exit (range 6) 1871 | -10/Subcaves | Shifting Twisted Machinery released Barrage Gun 1875 | -10/Subcaves | Shifting Twisted Machinery released Sub. Monowheel 1876 | -10/Subcaves | Shifting Twisted Machinery released Sub. Power Source 1986 | -10/Subcaves | A swath of the cavern ceiling suddenly collapsed 2038 | -10/Subcaves | Shifting Twisted Machinery released Mak. Light Armor Plating 2047 | -10/Subcaves | Shifting Twisted Machinery released Piercing Trap 2292 | -10/Subcaves | Learned location of Mines (-10) 2490 | -10/Subcaves | Released subatomizers from SUBCON Basin 2549 | -10/Subcaves | Entered Materials 2549 | -8/Materials | Evolved 4 slots: Propulsion x1, Utility x3 3231 | -8/Materials | Discovered new exit (range 15) 3426 | -8/Materials | Garrison activated, responded to threat 3512 | -8/Materials | Lost 4 parts (2n1u1w) 3799 | -8/Materials | Build established: Scavenger-Mutant 3830 | -8/Materials | Discovered new exit (range 20) 4218 | -8/Materials | Core integrity fell below 50% 4280 | -8/Materials | Repaired VSS Leg 4386 | -8/Materials | Identified exit to Factory 4518 | -8/Materials | Discovered new exit (range 19) 4673 | -8/Materials | Build established: Skirmisher 4674 | -8/Materials | Identified exit to Storage 5748 | -8/Materials | Entered Storage 5923 | -8/Storage | Learned location of Armory (-3) 6210 | -8/Storage | Assisted by bots powering up and referring to "LRC-V3" 6516 | -8/Storage | Build established: Commander-Skirmisher 7022 | -8/Storage | Repaired Med. Treads 8266 | -8/Storage | Discovered exit to Factory (range 19) 8309 | -8/Storage | Met 01-MTF 8601 | -8/Storage | Discovered new exit (range 5) 8613 | -8/Storage | Identified exit to Recycling 9138 | -8/Storage | Found Prototype Energy Gun 9139 | -8/Storage | Identified 01-MTF's Shockpuncher 9259 | -8/Storage | Build established: Skirmisher 9484 | -8/Storage | Entered Factory 9484 | -7/Factory | Accompanied by 4 allies (01-MTF) 9484 | -7/Factory | Evolved 2 slots: Power x1, Utility x1 9487 | -7/Factory | 01-MTF left 10618 | -7/Factory | Cargo convoy interrupted 13484 | -7/Factory | First assault squad dispatched 13684 | -7/Factory | Core integrity fell below 50% 13685 | -7/Factory | System corruption reached 10% 13740 | -7/Factory | Lost 8 parts (2p2n2u2w) 14153 | -7/Factory | Build established: Mutant 14817 | -7/Factory | Lost 3 parts (1n2u) 15735 | -7/Factory | Core integrity fell below 20% 15778 | -7/Factory | Lost 3 parts (1p1n1w) 16143 | -7/Factory | Destroyed 9 combat bots 16147 | -7/Factory | Lost 5 parts (4u1w) 16687 | -7/Factory | Destroyed by P-60 Hacker with Shock Rifle Last Messages --------------- 16427_ System corrupted: Energy discharge (-306). 16443_ System corrupted: Energy discharge (-188). 16459_ System corrupted: Matter fused (-6). 16476_ System corrupted: Component data lost. 16496_ CRP #GD/WDCIDZ2II6AIUF JPQ/VANCHZ50B8QQ 16511_ System corrupted: Energy discharge (-261). 16532_ System corrupted: FCS attempts to trigger Flak Cannon. 16532_ System corrupted: Flak Cannon misfires. 16567_ System corrupted: Component data lost. 16627_ System corrupted: Matter fused (-9). 16635_ ALERT: Potential suspicious activity detected, Programmers report to Factory Zone 5F. 16652_ System corrupted: Matter fused (-7). 16669_ System corrupted: Ion Burst Cannon rejected. 16676_ P-60 Hacker knocked back. 16684_ ALERT: Unidentified disturbance in Zone 5A, multiple assault carriers dispatched. 16685_ P-60 Hacker knocked back. 16685_ P-60 Hacker resets K-01 Serf, system corruption cleaned. Map ----- +----------------------------------------------------+ | ????# """" #???????????????????????????????? | | ###########+######???????????????????????????????? | | # #?????????????????????????????????? | | " "" # #?????????????????????????????????? | | " """ #^^ ^^^#?????????????????????????????????? | | " R" # ##############????????????????????? | | """ # # #????????????????????? | | " # # #???##############???? | | " + # """"""""" #???# """" #???? | | " # # !#???# ""S"" #???? | | = # # """"""""" #???# "" "" #??## | | ! # # #???# #??# | | ##+##### # ] ! ""#???# #??# | | ### # ""#???# """"""""" !#??# | | # = G#???# #??# | | + ""#???# """"""""" #?## | | ] # ""#???# #?# | | % ]% #= #???# """"""""" #?## | | % %##############???# #??# | | #????????????????# #??# | | % %########################+########## | | ] % k kk ^^ | | ] % k ^^ | | = ^^ | | % %% | | % k a @ | | ###########p########### ########## | | ##########?# %% #?# #????????? | | #??????????# """""" """"""" #?# #????????? | | #??????????# """"""" """"""" #?# #?######## | | #??????????# """""" %""""""" #?# u#?# | | #??????????# """"""% """"""" #?# #?#[ | | #??????????# % % #?# ### | | #??????????# = #?# + """ | | #??????????############+######?# # """ | | % #??????????????????# #?# # """ | | #??????????????????# """"""" #?# # | | #????????########### """"""" #?# # | | ?????????# ## """"""" #?# # ! | | ?????????#"" ## """" "" #?# # | | ? ?????????#"T ## #?# / ""Y"" | | ???????????????#"" ## = ### # """"" | | ???????????????# ## =%! "## ######## | | ???????????????# """######+####### # | | ???????????????# """# %^ ^ ! # | | ???????????????# """# % | | ???????????????# + ^ | | ??????????????########### " "" " "" """" | | ??????????????# ## """" """" """" # | | ??????????????# """ # """" """ """ # | +----------------------------------------------------+ Best States ------------- Heat Dissipation 53 Energy Generation 28 Energy Capacity 990 Matter Stores 300 Matter Capacity 300 Sight Range 21 Robot Scan Range 15 Terrain Scan Range 16 Terrain Scan Density 10 Jamming Range 12 Armor Coverage 450 Resistance: KI 30 Resistance: EM 20 Core Shielding 20 Power Shielding 33 Weapon Shielding 66 Weapon Cycling 15 Evasion (%) 50 Core Analysis 6 Recoil Reduction 3 Kinecelleration 30 Item Schematics ----------------- None Robot Schematics ------------------ None Fabricated ------------ Nothing Repaired ---------- VSS Leg | 10% | -8/Materials Med. Treads | 23% | -8/Storage Alien Tech Used ----------------- None Achievements -------------- Maybe Next Time I'll Detach My Launcher Challenges ------------ None Game ------ Seed GrapheneNetworkScrapsphere Manual? 0 Play Time 03:18:38 Cumulative 36.7 hours Start 2025.05.09 @ 15:12:40 End 2025.05.09 @ 22:23:42 Sessions 6 Manual Loads 0 Difficulty Rogue Special Mode None Game No. 21 Rogue 21 Adventurer 0 Explorer 0 Win Type - Total 0 Types 0/0/0/0/0/0/0/0/0/0 Lore% 11 Gallery% 28 Achievement% 20 Wizard Run 0 Options --------- Layout 1 ASCII 0 Keyboard 0 Movement Mouse Keybinds 0 Fullscreen 0 Font 20/Terminus Map View 64x42 Zoom Use 0% Tactical HUD 1 Map Filters NONE Filters NONE Steam 1 RUN: 49607a9a-0a41-472d-8f69-7136592c3b5f